[Event "FRA-ch Youth U20 2018"]
[Site "Agen"]
[Date "2018.04.19"]
[Round "6"]
[White "Leriche, Ines"]
[Black "Fretel, Liza"]
[Result "0-1"]
[ECO "A48"]
[WhiteElo "1913"]
[BlackElo "1849"]
[Annotator "NA"]
[PlyCount "120"]
[EventDate "2018.??.??"]
[EventType "swiss"]
[EventCountry "FRA"]
[SourceTitle "playchess.com"]
[Source "ChessBase"]
[SourceQuality "1"]
[TimeControl "5400+30"]

1. d4 {[%emt 0:00:00]} Nf6 {[%emt 0:00:07]} 2. Nf3 {[%emt 0:00:00]} g6 {[%emt 0:00:07]} 3. Bf4 {[%emt 0:00:18]} Bg7 {[%emt 0:00:36]} 4. e3 {[%emt 0:00:33]} O-O {[%emt 0:01:00]} 5. Be2 {[%emt 0:00:35] LiveBook: 1076 Games} c5 {[%emt 0:02:48]} 6. c3 {[%emt 0:00:38]} Qb6 {[%emt 0:03:41]} 7. Qc1 {[%emt 0:10:27] A48: 1 d4 Nf6 2 Nf3 g6: Torre, London and Colle Systems} (7. Qb3 d6 8. Nbd2 cxd4 9. Qxb6 axb6 10. exd4 Bd7 11. O-O Nd5 12. Bg3 b5 13. a3 Bc6 14. Rfe1 Nd7 {½-½ (90) Pakleza,Z (2497)-Moranda,W (2599) Zgierz 2018}) 7... d5 {[%emt 0:06:10]} 8. Nbd2 {[%emt 0:03:00]} Nc6 {[%emt 0:05:03]} 9. h3 {[%emt 0:01:35]} cxd4 {[%emt 0:02:04]} 10. exd4 {[%emt 0:01:39]} Nd7 $146 {[%emt 0:01:39]} ({Predecessor:} 10... Bf5 11. g4 {½-½ (29) Gamet,A (2097)-Soyez,C (2147) Aix les Bains 2006}) 11. O-O {[%emt 0:10:27]} f6 {[%emt 0:03:37]} 12. Nb3 {[%emt 0:15:26]} a5 {[%emt 0:04:06]} 13. Qd2 {[%emt 0:17:22]} a4 {[%emt 0:04:14]} 14. Nc1 {[%emt 0:00:36]} Na5 {[%emt 0:04:46]} 15. Re1 {[%emt 0:04:23]} Re8 {[%emt 0:06:43]} 16. Rb1 {[%emt 0:10:17]} Nf8 {[%emt 0:03:16]} 17. Bd3 {[%emt 0:02:26]} Nc4 {[%emt 0:03:35]} 18. Qe2 {[%emt 0:01:04]} Qe6 {[%emt 0:08:11]} 19. Qf1 {[%emt 0:03:25]} Qf7 {[%emt 0:00:06]} 20. Nd2 {[%emt 0:02:01]} Ne6 {[%emt 0:05:24]} 21. Nxc4 {[%emt 0:04:47]} Nxf4 {[%emt 0:00:30]} 22. Nb6 {[%emt 0:00:31]} Nxd3 {[%emt 0:00:49]} 23. Nxd3 {[%emt 0:00:08]} Ra7 {[%emt 0:09:12]} 24. Nb4 {[%emt 0:05:43]} Ra5 {[%emt 0:06:30]} 25. Qe2 {[%emt 0:03:14]} e5 {[%emt 0:02:35]} 26. Nxc8 {[%emt 0:01:13]} Rxc8 {[%emt 0:00:14]} 27. Qd2 {[%emt 0:00:46]} e4 {[%emt 0:03:05]} 28. b3 {[%emt 0:00:53]} f5 {[%emt 0:01:47]} 29. Qc2 {[%emt 0:00:31]} Bxd4 {[%emt 0:01:19]} 30. bxa4 {[%emt 0:00:21]} Bxc3 {[%emt 0:01:33]} 31. Red1 {[%emt 0:00:38]} Rac5 {[%emt 0:00:31]} 32. Qe2 {[%emt 0:00:32]} d4 {[%emt 0:00:34]} 33. a3 {[%emt 0:00:30]} d3 {[%emt 0:01:29]} 34. Qe3 {[%emt 0:00:16]} Qd7 {[%emt 0:02:01]} 35. Na2 {[%emt 0:00:44]} Bd4 {[%emt 0:00:20]} 36. Qf4 {[%emt 0:00:28]} Rc2 {[%emt 0:00:24]} 37. Rd2 {[%emt 0:00:29]} Rxd2 {[%emt 0:00:10]} 38. Qxd2 {[%emt 0:00:05]} Rc2 {[%emt 0:00:05]} 39. Qf4 {[%emt 0:00:27]} Rxa2 {[%emt 0:01:42]} 40. Qb8+ {[%emt 0:00:38]} Kf7 {[%emt 0:00:09]} 41. Rxb7 {[%emt 0:00:17]} Ra1+ {[%emt 0:00:06]} 42. Kh2 {[%emt 0:00:16]} Be5+ {[%emt 0:00:05]} 43. Qxe5 {[%emt 0:00:34]} Qxb7 {[%emt 0:00:04]} 44. Qxa1 {[%emt 0:00:13]} Qc7+ {[%emt 0:00:21]} 45. g3 {[%emt 0:00:34]} Qc2 {[%emt 0:00:11]} 46. Qd4 {[%emt 0:00:24]} Qc7 {[%emt 0:04:16]} 47. Qd5+ {[%emt 0:00:55]} Ke7 {[%emt 0:00:24]} 48. a5 {[%emt 0:00:30]} Qd7 $11 {[%emt 0:01:38]} (48... Qd6 $17 49. Qb7+ Kf6 50. Qb2+ Ke6 51. Qb3+ Qd5 52. Qb6+ Kd7 53. Qa7+ Kc8 54. Qa6+ Kd7 55. Qa7+ Kc8 56. Qa6+ Kd8 57. Qb6+ Kd7 58. Qa7+) 49. Qe5+ {[%emt 0:00:57]} Kf7 {[%emt 0:01:34]} 50. Qc3 {[%emt 0:00:43]} d2 {[%emt 0:00:24]} 51. Qb3+ {[%emt 0:00:30]} Kf6 {[%emt 0:01:20]} 52. Qd1 {[%emt 0:00:00]} Qd4 {[%emt 0:00:40]} 53. Kg2 {[%emt 0:00:30]} Qd5 {[%emt 0:00:18]} 54. Kf1 {[%emt 0:00:55]} Qb5+ {[%emt 0:00:54]} 55. Kg2 {[%emt 0:00:30]} Qxa5 {[%emt 0:00:07]} 56. a4 {[%emt 0:00:27]} Qc3 {[%emt 0:00:30]} 57. Kf1 {[%emt 0:00:29]} Qc4+ {[%emt 0:00:26]} 58. Kg2 {[%emt 0:00:11]} Qc1 {[%emt 0:00:06]} 59. Qb3 {[%emt 0:00:57]} d1=Q {[%emt 0:00:08]} 60. Qb6+ {[%emt 0:00:15]} Ke7 {[%emt 0:00:21]} 0-1

[Event "FRA-ch Youth U20 2018"]
[Site "Agen"]
[Date "2018.04.19"]
[Round "6"]
[White "Terrazzoni, Claire"]
[Black "Aouachria, Marwa"]
[Result "0-1"]
[ECO "B43"]
[WhiteElo "1819"]
[BlackElo "1687"]
[Annotator "NA"]
[PlyCount "74"]
[EventDate "2018.??.??"]
[EventType "swiss"]
[EventCountry "FRA"]
[SourceTitle "playchess.com"]
[Source "ChessBase"]
[SourceQuality "1"]
[TimeControl "5400+30"]

1. e4 {[%emt 0:00:00]} c5 {[%emt 0:00:04]} 2. Nc3 {[%emt 0:00:00]} e6 {[%emt 0:00:21]} 3. Nf3 {[%emt 0:01:13]} a6 {[%emt 0:00:30]} 4. d4 {[%emt 0:03:26]} cxd4 {[%emt 0:00:12]} 5. Nxd4 {[%emt 0:00:07]} Nf6 {[%emt 0:00:12]} 6. e5 {[%emt 0:08:18]} Ng8 {[%emt 0:02:07]} 7. g3 {[%emt 0:05:35]} Qc7 {[%emt 0:01:09]} 8. f4 {[%emt 0:02:46]} Bb4 {[%emt 0:04:07]} 9. Bd2 {[%emt 0:02:56]} Nc6 {[%emt 0:03:54]} 10. Nb3 {[%emt 0:02:56]} d5 {[%emt 0:05:27]} 11. a3 {[%emt 0:05:15]} Bxc3 12. Bxc3 {[%emt 0:01:54]} Nge7 {[%emt 0:04:18]} 13. Bh3 {[%emt 0:10:46]} b5 {[%emt 0:02:15]} 14. Nd4 {[%emt 0:07:26]} Bb7 {[%emt 0:03:38]} 15. O-O {[%emt 0:07:36]} g6 {[%emt 0:13:15]} 16. Qd2 {[%emt 0:07:06]} Nxd4 {[%emt 0:02:51]} 17. Bxd4 {[%emt 0:00:58]} Rc8 {[%emt 0:03:03]} 18. Rf2 {[%emt 0:04:18]} Nc6 {[%emt 0:02:47]} 19. Bc3 {[%emt 0:04:36]} Qb6 {[%emt 0:08:21]} 20. Bg2 {[%emt 0:05:04]} a5 {[%emt 0:01:23]} 21. Qd1 {[%emt 0:08:16]} Qc5 {[%emt 0:16:31]} 22. Bd2 {[%emt 0:03:38]} h5 {[%emt 0:09:22]} 23. Rc1 {[%emt 0:04:53]} Qb6 {[%emt 0:03:08]} 24. Qe1 {[%emt 0:00:44]} b4 {[%emt 0:01:56]} 25. axb4 {[%emt 0:00:49]} Nxb4 {[%emt 0:02:57]} 26. Bxb4 {[%emt 0:01:08]} axb4 {[%emt 0:03:29]} 27. Ra1 {[%emt 0:00:42]} Rxc2 {[%emt 0:00:47]} 28. Kf1 {[%emt 0:00:53]} Ba6+ {[%emt 0:00:26]} 29. Kg1 {[%emt 0:00:28]} Bb7 {[%emt 0:01:04]} 30. Kf1 {[%emt 0:00:19]} b3 {[%emt 0:02:19]} 31. Rxc2 {[%emt 0:00:45]} bxc2 {[%emt 0:00:01]} 32. Qc3 {[%emt 0:00:27]} Ba6+ {[%emt 0:00:54]} 33. Ke1 {[%emt 0:00:39]} Qg1+ {[%emt 0:00:14]} 34. Kd2 {[%emt 0:00:12]} Qxa1 {[%emt 0:02:11]} 35. Qc6+ {[%emt 0:00:38]} Kf8 {[%emt 0:00:25]} 36. Kxc2 {[%emt 0:00:34]} Kg7 {[%emt 0:00:23]} 37. Qd6 {[%emt 0:00:31]} Rc8+ {[%emt 0:00:30]} 0-1

[Event "FRA-ch Youth U20 2018"]
[Site "Agen"]
[Date "2018.04.19"]
[Round "6"]
[White "Guigue, Marie-Celine"]
[Black "Aubert, Laurane"]
[Result "0-1"]
[ECO "B06"]
[WhiteElo "1288"]
[BlackElo "1952"]
[Annotator "NA"]
[PlyCount "102"]
[EventDate "2018.??.??"]
[EventType "swiss"]
[EventCountry "FRA"]
[SourceTitle "playchess.com"]
[Source "ChessBase"]
[SourceQuality "1"]
[TimeControl "5400+30"]

1. e4 {[%emt 0:00:00]} g6 {[%emt 0:00:04]} 2. d4 {[%emt 0:00:10]} c6 {[%emt 0:00:05]} 3. Nf3 {[%emt 0:00:12]} d5 {[%emt 0:00:33]} 4. e5 {[%emt 0:02:45]} Bg7 {[%emt 0:00:25]} 5. Bd3 {[%emt 0:03:05]} Bg4 {[%emt 0:00:52]} 6. h3 {[%emt 0:00:19] B06: Modern Defence} (6. Nbd2 e6 7. h3 Bxf3 8. Nxf3 Nd7 9. O-O Ne7 10. c3 c5 11. Rb1 Nc6 12. b4 c4 13. Bc2 b5 14. a4 a6 15. Ra1 Na7 16. Bg5 {1-0 (46) Hansen,S (2549)-Argandona Riveiro,I (2388) Helsingor 2013}) 6... Bxf3 {[%emt 0:00:05]} 7. Qxf3 {[%emt 0:00:07]} e6 {[%emt 0:00:10]} 8. O-O {[%emt 0:03:25]} Ne7 {[%emt 0:00:43]} 9. Bg5 {[%emt 0:03:53]} h6 $146 {[%emt 0:01:22]} ({Predecessor:} 9... O-O 10. Nd2 Nd7 11. Nb3 Rc8 12. Na5 Rb8 13. Nb3 b6 {1-0 (51) Sahki,S (1629)-Huguet,A (1370) France 2012}) 10. Bf6 {[%emt 0:04:57]} O-O {[%emt 0:06:42]} 11. Bxg7 Kxg7 {[%emt 0:00:05]} 12. Qf6+ {[%emt 0:06:54]} Kh7 {[%emt 0:00:46]} 13. Nd2 {[%emt 0:04:13]} Nd7 {[%emt 0:01:05]} 14. Qh4 {[%emt 0:03:07]} c5 {[%emt 0:01:55]} 15. c3 {[%emt 0:01:07]} Rc8 {[%emt 0:15:25]} 16. Nf3 {[%emt 0:11:36]} Re8 {[%emt 0:08:18]} 17. Qf4 {[%emt 0:25:44]} Kg7 {[%emt 0:00:52]} 18. h4 {[%emt 0:00:30]} Nc6 {[%emt 0:12:50]} 19. g4 {[%emt 0:04:10]} a6 {[%emt 0:03:41]} 20. a3 {[%emt 0:02:46]} Rf8 {[%emt 0:08:01]} 21. g5 {[%emt 0:00:59]} h5 {[%emt 0:00:29]} 22. Qe3 {[%emt 0:01:25]} Qb6 {[%emt 0:09:23]} 23. Rab1 {[%emt 0:04:25]} a5 {[%emt 0:06:48]} 24. Bc2 {[%emt 0:01:13]} cxd4 {[%emt 0:05:24]} 25. cxd4 {[%emt 0:01:24]} Qc7 {[%emt 0:02:59]} 26. Ba4 {[%emt 0:02:21]} Nb6 {[%emt 0:00:47]} 27. Bb3 {[%emt 0:02:27]} a4 {[%emt 0:00:32]} 28. Ba2 {[%emt 0:00:38]} Na5 {[%emt 0:01:34]} 29. Rfc1 {[%emt 0:00:43]} Nbc4 {[%emt 0:01:07]} 30. Bxc4 {[%emt 0:00:40]} Nxc4 {[%emt 0:00:08]} 31. Qc3 {[%emt 0:00:41]} Qd7 {[%emt 0:01:26]} 32. Nd2 {[%emt 0:02:05]} Nxe5 {[%emt 0:02:12]} 33. Qe3 {[%emt 0:03:40]} Nc6 {[%emt 0:01:59]} 34. Nf3 {[%emt 0:00:40]} Qd6 {[%emt 0:02:10]} 35. Rc3 {[%emt 0:02:44]} Rce8 {[%emt 0:05:14]} 36. Ne5 {[%emt 0:01:02]} Ne7 {[%emt 0:00:51]} 37. f4 {[%emt 0:01:32]} Nf5 {[%emt 0:00:20]} 38. Qf2 {[%emt 0:00:31]} Re7 {[%emt 0:01:17]} 39. Rbc1 {[%emt 0:00:12]} Qb6 {[%emt 0:00:18]} 40. Nf3 {[%emt 0:00:37]} Nd6 {[%emt 0:00:21]} 41. Qc2 {[%emt 0:00:40]} Ne4 {[%emt 0:00:49]} 42. Rd3 {[%emt 0:00:47]} Qa5 {[%emt 0:00:35]} 43. b4 {[%emt 0:00:25]} axb3 {[%emt 0:00:26]} 44. Qxb3 {[%emt 0:00:12]} (44. Rxb3 {was forced.} Ra8 45. Ne5) 44... Rc7 {[%emt 0:00:41]} 45. Rxc7 {[%emt 0:00:16]} Qxc7 {[%emt 0:00:04]} 46. Ne5 {[%emt 0:00:29]} Qc1+ {[%emt 0:00:26]} 47. Qd1 {[%emt 0:01:06]} Qxf4 {[%emt 0:00:54]} 48. Rf3 {[%emt 0:00:29]} Qxh4 {[%emt 0:00:34]} 49. Qf1 {[%emt 0:00:15]} Qxg5+ {[%emt 0:00:17]} 50. Kh2 $19 {[%emt 0:00:36]} f6 {[%emt 0:00:46]} 51. Nd7 {[%emt 0:00:44]} Nd2 {[%emt 0:00:31]} 0-1

[Event "FRA-ch Youth U20 2018"]
[Site "Agen"]
[Date "2018.04.20"]
[Round "7"]
[White "Pigeat, Alexandre"]
[Black "Laronche, Thomas"]
[Result "1-0"]
[ECO "E40"]
[WhiteElo "2275"]
[BlackElo "2137"]
[Annotator "NA"]
[PlyCount "111"]
[EventDate "2018.??.??"]
[EventType "swiss"]
[EventCountry "FRA"]
[SourceTitle "playchess.com"]
[Source "ChessBase"]
[SourceQuality "1"]
[TimeControl "5400+30"]

1. d4 {[%emt 0:00:00]} Nf6 {[%emt 0:00:31]} 2. c4 {[%emt 0:00:00]} e6 {[%emt 0:00:26]} 3. Nc3 {[%emt 0:00:13]} Bb4 {[%emt 0:00:31]} 4. e3 {[%emt 0:00:13]} Nc6 {[%emt 0:00:28]} 5. Nge2 {[%emt 0:00:49]} e5 {[%emt 0:00:22] E40: Nimzo-Indian: Rubinstein (4 e3): Unusual Black 4th moves} 6. a3 {[%emt 0:02:42]} (6. d5 Ne7 7. a3 Bxc3+ 8. Nxc3 d6 9. e4 O-O 10. Be2 a5 11. Be3 b6 12. O-O Nd7 13. b4 {½-½ (29) Lenderman,A (2549)-Gareyev,T (2650) Las Vegas 2013}) 6... Bxc3+ {[%emt 0:01:49]} 7. Nxc3 {[%emt 0:00:15]} exd4 {[%emt 0:00:17]} 8. exd4 {[%emt 0:00:02]} d5 {[%emt 0:00:09]} 9. Bg5 $146 {[%emt 0:01:20]} ({Find the theoretical novelty and annotate with similar games:} 9. cxd5 Nxd5 10. Bc4 Nxc3 11. bxc3 {0-1 (34) Molina,V (773)-Malyszek,T (932) LSS email 2013}) 9... dxc4 {[%emt 0:05:31]} 10. Qe2+ {[%emt 0:07:41]} Kf8 {[%emt 0:09:37]} 11. Ne4 {[%emt 0:06:47]} (11. O-O-O $14) 11... h6 {[%emt 0:06:20]} 12. Bxf6 $1 {[%emt 0:03:36]} gxf6 {[%emt 0:00:18]} 13. Rd1 {[%emt 0:05:55]} Bf5 {[%emt 0:04:02]} 14. f3 {[%emt 0:03:40]} Kg7 {[%emt 0:07:24]} 15. Qe3 {[%emt 0:09:49]} Qd5 {[%emt 0:07:42]} 16. Kf2 {[%emt 0:03:45]} (16. Nc3 $15 Qa5 17. Qf4) 16... Rae8 {[%emt 0:02:55]} 17. Nc3 {[%emt 0:03:57]} Rxe3 {[%emt 0:09:44]} 18. Nxd5 {[%emt 0:00:11]} Rb3 {[%emt 0:00:02]} 19. Rd2 {[%emt 0:02:22]} Bd3 {[%emt 0:02:41]} 20. Bxd3 {[%emt 0:00:22]} cxd3 {[%emt 0:00:59]} 21. Rc1 {[%emt 0:03:26]} Rd8 {[%emt 0:01:56]} 22. Ne3 {[%emt 0:00:24]} Kg6 {[%emt 0:02:26]} 23. d5 {[%emt 0:01:44]} Ne7 {[%emt 0:02:27]} 24. Rc5 {[%emt 0:01:33]} a6 {[%emt 0:05:50]} 25. h4 {[%emt 0:03:16]} b6 {[%emt 0:03:00]} 26. Rc4 {[%emt 0:04:27]} Nxd5 {[%emt 0:01:50]} 27. h5+ {[%emt 0:02:58]} Kxh5 {[%emt 0:06:26]} 28. Nf5 {[%emt 0:00:38]} Kg6 {[%emt 0:00:25]} 29. Nd4 {[%emt 0:00:07]} Rb5 {[%emt 0:01:45]} 30. Nxb5 {[%emt 0:00:23]} axb5 {[%emt 0:00:04]} 31. Rc6 {[%emt 0:01:01]} Re8 {[%emt 0:04:24]} 32. Rxd3 {[%emt 0:00:36]} Nf4 {[%emt 0:00:10]} 33. Rd2 {[%emt 0:00:06]} Ne6 {[%emt 0:00:11]} 34. g4 {[%emt 0:01:24]} b4 {[%emt 0:04:10]} 35. axb4 {[%emt 0:00:22]} f5 {[%emt 0:00:06]} 36. gxf5+ {[%emt 0:01:19]} Kxf5 {[%emt 0:00:01]} 37. Rd7 {[%emt 0:00:11]} Rf8 {[%emt 0:01:33]} 38. b5 {[%emt 0:00:41]} Ke5 {[%emt 0:00:55]} 39. Ke3 {[%emt 0:00:55]} Kf5 {[%emt 0:01:07]} 40. Rd5+ {[%emt 0:01:06]} Kf6 {[%emt 0:00:27]} 41. Rd7 {[%emt 0:04:30]} Kf5 {[%emt 0:00:54]} 42. Rc1 {[%emt 0:02:49]} Kf6 {[%emt 0:01:00]} 43. Rh1 $16 {[%emt 0:00:50]} Kg5 {[%emt 0:00:17]} 44. Rd5+ {[%emt 0:03:06]} Kg6 {[%emt 0:00:22]} 45. f4 {[%emt 0:00:18]} f5 {[%emt 0:00:18]} 46. Rd7 {[%emt 0:00:28]} Rh8 {[%emt 0:01:20]} 47. Rc1 {[%emt 0:02:00]} h5 {[%emt 0:02:53]} 48. Rc6 {[%emt 0:01:26]} Re8 {[%emt 0:01:02]} 49. Rdxc7 {[%emt 0:00:42]} h4 {[%emt 0:00:07]} 50. Kf3 {[%emt 0:01:02]} h3 {[%emt 0:00:33]} 51. Rxb6 {[%emt 0:01:54]} h2 {[%emt 0:00:22]} 52. Rc1 {[%emt 0:00:08]} Kh5 {[%emt 0:00:39]} 53. Rd6 {[%emt 0:00:14]} Nxf4 {[%emt 0:04:06]} 54. Kxf4 {[%emt 0:00:18]} Re2 {[%emt 0:00:06]} 55. Rh1 {[%emt 0:01:28]} Rxb2 {[%emt 0:00:19]} 56. b6 {[%emt 0:00:06]} 1-0

[Event "FRA-ch Youth U20 2018"]
[Site "Agen"]
[Date "2018.04.20"]
[Round "7"]
[White "Albaric, Etienne"]
[Black "Duquesne, Adrien"]
[Result "1-0"]
[ECO "B51"]
[WhiteElo "2202"]
[BlackElo "2209"]
[Annotator "ChessBase"]
[PlyCount "149"]
[EventDate "2018.??.??"]
[EventType "swiss"]
[EventCountry "FRA"]
[SourceTitle "playchess.com"]
[Source "ChessBase"]
[SourceQuality "1"]
[TimeControl "5400+30"]

1. e4 {[%emt 0:00:00]} c5 {[%emt 0:03:00]} 2. Nf3 {[%emt 0:00:00]} d6 {[%emt 0:00:19]} 3. Bb5+ {[%emt 0:00:00]} Nd7 {[%emt 0:01:26]} 4. O-O {[%emt 0:00:51]} a6 {[%emt 0:00:42]} 5. Bd3 {[%emt 0:00:09]} e6 {[%emt 0:00:32]} 6. a4 {[%emt 0:04:42]} Ngf6 {[%emt 0:14:43]} 7. c3 {[%emt 0:03:22]} b5 {[%emt 0:06:01]} 8. axb5 {[%emt 0:11:41]} Bb7 {[%emt 0:00:20]} 9. bxa6 {[%emt 0:04:28]} Bxe4 {[%emt 0:00:27]} 10. Bxe4 {[%emt 0:07:57]} Nxe4 {[%emt 0:00:11]} 11. Qa4 {[%emt 0:07:48]} Nef6 {[%emt 0:02:51]} 12. Na3 {[%emt 0:06:36]} Be7 {[%emt 0:03:47]} 13. b4 {[%emt 0:02:54]} cxb4 {[%emt 0:04:08]} 14. cxb4 {[%emt 0:00:54]} O-O {[%emt 0:05:45]} 15. b5 {[%emt 0:07:25]} Nd5 {[%emt 0:05:55]} 16. Bb2 {[%emt 0:09:08]} Nc5 {[%emt 0:17:57]} 17. Qd1 {[%emt 0:01:27]} Nd3 {[%emt 0:06:09]} 18. Bc3 {[%emt 0:03:40]} e5 {[%emt 0:01:28]} 19. Nc4 {[%emt 0:02:41]} Qc8 {[%emt 0:10:41]} 20. Ne3 {[%emt 0:04:52]} Nb6 {[%emt 0:00:28]} 21. Qc2 {[%emt 0:01:27]} Nf4 {[%emt 0:01:46]} 22. Ba5 {[%emt 0:03:10]} Qxc2 {[%emt 0:03:36]} 23. Nxc2 {[%emt 0:00:02]} Nc4 {[%emt 0:00:13]} 24. Rfb1 {[%emt 0:04:54]} Nxa5 {[%emt 0:01:30]} 25. Rxa5 {[%emt 0:00:02]} Rfb8 {[%emt 0:00:42]} 26. Ne3 {[%emt 0:04:44]} Bd8 {[%emt 0:00:14]} 27. Ra4 {[%emt 0:00:39]} Nd3 {[%emt 0:01:50]} 28. Nd5 {[%emt 0:01:58]} Nc5 {[%emt 0:01:36]} 29. Raa1 {[%emt 0:00:01]} Kf8 {[%emt 0:00:09]} 30. d4 {[%emt 0:01:24]} Nd7 {[%emt 0:00:39]} 31. dxe5 {[%emt 0:01:47]} dxe5 {[%emt 0:00:06]} 32. Nd2 {[%emt 0:00:08]} Nb6 {[%emt 0:01:40]} 33. Nb4 {[%emt 0:01:16]} Be7 {[%emt 0:01:55]} 34. Nc6 {[%emt 0:00:11]} Rc8 {[%emt 0:00:07]} 35. Kf1 {[%emt 0:00:49]} f6 {[%emt 0:01:40]} 36. Nb3 {[%emt 0:00:55]} Kf7 {[%emt 0:00:59]} 37. Rd1 {[%emt 0:01:14]} Ke6 {[%emt 0:00:32]} 38. a7 {[%emt 0:01:09]} Rc7 {[%emt 0:00:24]} 39. Ra6 {[%emt 0:00:12]} Nc8 {[%emt 0:01:03]} 40. Nca5+ {[%emt 0:02:22]} Kf5 {[%emt 0:00:10]} 41. b6 {[%emt 0:00:20]} Nxb6 {[%emt 0:00:08]} 42. Rxb6 {[%emt 0:00:10]} Raxa7 {[%emt 0:00:14]} 43. Nc6 {[%emt 0:00:38]} Ra2 {[%emt 0:00:11]} 44. Nxe7+ {[%emt 0:00:16]} Rxe7 {[%emt 0:00:05]} 45. Rd2 {[%emt 0:00:25]} Ra3 {[%emt 0:00:10]} 46. Nc5 {[%emt 0:00:38]} Rc7 {[%emt 0:01:13]} 47. Rb5 {[%emt 0:00:48]} Rc3 {[%emt 0:01:53]} 48. Nb7 {[%emt 0:00:35]} Rc1+ {[%emt 0:00:31]} 49. Ke2 {[%emt 0:00:02]} Rh1 {[%emt 0:01:29]} 50. h3 {[%emt 0:00:24]} Rcc1 {[%emt 0:00:19]} 51. Nd6+ {[%emt 0:00:35]} Kg6 {[%emt 0:01:00]} 52. Rb3 {[%emt 0:01:07]} Rhe1+ {[%emt 0:00:58]} 53. Kf3 {[%emt 0:00:20]} h5 {[%emt 0:00:22]} 54. Re3 {[%emt 0:00:31]} Rg1 {[%emt 0:00:27]} 55. Ne4 {[%emt 0:00:51]} Rc4 {[%emt 0:00:34]} 56. Rd7 {[%emt 0:00:32]} h4 {[%emt 0:00:40]} 57. g3 {[%emt 0:00:35]} hxg3 {[%emt 0:00:16]} 58. fxg3 {[%emt 0:00:01]} Rf1+ {[%emt 0:00:41]} 59. Ke2 {[%emt 0:00:45]} Rcc1 {[%emt 0:00:16]} 60. Nd6 {[%emt 0:00:37]} Rce1+ {[%emt 0:00:24]} 61. Kd3 {[%emt 0:00:29]} Rd1+ {[%emt 0:00:06]} 62. Kc4 {[%emt 0:00:11]} Rd4+ {[%emt 0:00:10]} 63. Kc5 {[%emt 0:00:34]} Rc1+ {[%emt 0:00:07]} 64. Kb6 {[%emt 0:00:31]} Rb4+ {[%emt 0:00:35]} 65. Nb5 {[%emt 0:00:15]} Rcb1 {[%emt 0:00:13]} 66. Rd5 {[%emt 0:00:01]} Rh1 {[%emt 0:00:15]} 67. g4 Rb2 {[%emt 0:00:54]} 68. Kc6 {[%emt 0:01:40]} Rbh2 {[%emt 0:00:21]} 69. Rdd3 {[%emt 0:00:01]} Kg5 {[%emt 0:00:10]} 70. Nd6 {[%emt 0:00:47]} g6 {[%emt 0:00:59]} 71. Ne4+ {[%emt 0:00:55]} Kh4 {[%emt 0:00:19]} 72. Nxf6 {[%emt 0:00:26]} Rxh3 {[%emt 0:02:00]} 73. Rxh3+ {[%emt 0:00:40]} Rxh3 {[%emt 0:00:07]} 74. Rxh3+ {[%emt 0:00:19]} Kxh3 {[%emt 0:00:04]} 75. Kd5 {[%emt 0:00:32]} 1-0

[Event "FRA-ch Youth U20 2018"]
[Site "Agen"]
[Date "2018.04.20"]
[Round "7"]
[White "Grezels, Florian"]
[Black "Ek, Alexandre"]
[Result "0-1"]
[ECO "B90"]
[WhiteElo "2181"]
[BlackElo "2222"]
[Annotator "NA"]
[PlyCount "62"]
[EventDate "2018.??.??"]
[EventType "swiss"]
[EventCountry "FRA"]
[SourceTitle "playchess.com"]
[Source "ChessBase"]
[SourceQuality "1"]
[TimeControl "5400+30"]

1. e4 {[%emt 0:00:00]} c5 {[%emt 0:00:07]} 2. Nf3 {[%emt 0:00:00]} d6 {[%emt 0:00:09]} 3. d4 {[%emt 0:00:00]} cxd4 {[%emt 0:00:06]} 4. Nxd4 {[%emt 0:00:00]} Nf6 {[%emt 0:00:07]} 5. Nc3 {[%emt 0:00:01]} a6 {[%emt 0:00:21]} 6. Be3 {[%emt 0:00:48]} e6 {[%emt 0:00:53]} 7. f3 {[%emt 0:01:29]} b5 {[%emt 0:00:45]} 8. Qd2 {[%emt 0:01:03]} Nbd7 {[%emt 0:00:31]} 9. g4 {[%emt 0:00:36]} Nb6 {[%emt 0:00:40]} 10. a4 {[%emt 0:00:17] B80: Sicilian Scheveningen: 6 g3 and 6 Be3, including English Attack} b4 {[%emt 0:00:59]} (10... Nc4 11. Bxc4 bxc4 12. a5 Qc7 13. g5 Nd7 14. Kd1 Rb8 15. Kc1 Nc5 16. Na4 Nxa4 17. Rxa4 Be7 {0-1 (53) Yu,Y (2734)-Xu,J (2534) Wuxi 2016}) 11. Na2 {[%emt 0:02:57]} d5 {[%emt 0:00:26]} 12. a5 {[%emt 0:05:30]} Na4 $146 {[%emt 0:38:20]} ({Predecessor:} 12... Nc4 $16 13. Bxc4 dxc4 14. Nxb4 Bb7 15. Nbc6 Qc8 16. Ra4 Bc5 17. Rxc4 Bxd4 18. Qxd4 {1-0 (32) Sedlak,N (2581)-Sadikhov,U (2222) Gent 2013}) 13. e5 $2 {[%emt 0:24:20]} (13. Nxb4 $18 Nxb2 14. Ndc6) 13... Nd7 {[%emt 0:01:47]} 14. Nxb4 {[%emt 0:07:50]} Nxb2 {[%emt 0:02:48]} 15. f4 {[%emt 0:15:55]} Nc5 {[%emt 0:11:37]} 16. c3 {[%emt 0:04:52]} Nc4 {[%emt 0:03:24]} 17. Bxc4 {[%emt 0:01:00]} dxc4 {[%emt 0:00:00]} 18. O-O {[%emt 0:08:07]} Bb7 {[%emt 0:11:25]} 19. Rad1 {[%emt 0:06:49]} Qh4 {[%emt 0:06:51]} 20. Ndc6 {[%emt 0:02:30]} Qxg4+ {[%emt 0:00:26]} 21. Kh1 {[%emt 0:03:21]} Nd3 {[%emt 0:00:18]} 22. Rg1 {[%emt 0:11:52]} Qf3+ {[%emt 0:00:18]} 23. Rg2 {[%emt 0:00:44]} Bxc6 {[%emt 0:02:01]} 24. Nxc6 {[%emt 0:00:36]} Qxc6 {[%emt 0:00:07]} 25. f5 {[%emt 0:00:35]} exf5 {[%emt 0:01:36]} 26. Bd4 $19 {[%emt 0:01:01]} Rb8 {[%emt 0:02:51]} 27. Kg1 {[%emt 0:00:43]} Bc5 {[%emt 0:04:05]} 28. Rxg7 {[%emt 0:00:25]} Bxd4+ {[%emt 0:00:18]} 29. cxd4 {[%emt 0:00:02]} Qe4 {[%emt 0:00:29]} 30. Qa2 {[%emt 0:01:04]} Qe3+ {[%emt 0:01:03]} 31. Kf1 {[%emt 0:00:19]} Qf3+ {[%emt 0:00:09]} 0-1